Workbook

Sheet паспорт
A1: ПАТ "УКРТРАНСГАЗ" | G1: ПАСПОРТ ФІЗИКО-ХІМІЧНИХ ПОКАЗНИКІВ ПРИРОДНОГО ГАЗУ № 850 | Z1: Маршрут № 850
A2: Філія "УМГ "Черкаситрансгаз" | E2: переданого Олександрівським ЛВУМГ та прийнятого ПАТ "Миколаївгаз "; ПАТ"Одесагаз ";
A3: Південно-Бузький п/м Олександрівське ЛВУМГ | I3: ВАТ"Кіровоградгаз "; Кіровоград-2 ТОВ ТПЗ "ОіК"; Кіровоград-2 ТОВ "Антарктида-17 "
A4: Вимірювальна хіміко-аналітична лабораторія
A5: Свідоцтво № РН-0058/2015 чинно до 18.06.2020 р. | K5: по газопроводу "Кременчук-Ананьїв-Богородчани" | V5: за період з | X5: 2017-02-01 | Z5: по | AA5: 2017-02-28
A7: Число місяця | B7: Компонентний склад, % мол. | N7: Фізико-хімічні показники газу обчислені на основі компонентного складу, 101,325 кПа | X7: Температура точки роси за вологою (Р = 3.92 МПа), ºС | Y7: Температура точки роси за вуглеводнями, ºС | Z7: Вміст сірководню,г/м3 | AA7: Вміст меркаптанової сірки, г/м3 | AB7: Вміст механічних домішок, г/м3
N8: Густина абсолютна, кг/м3,при 20 ºС, | O8: Температура вимірювання/згоряння при 20/25°С
B9: метан, С1 | C9: етан, С2 | D9: пропан, С3 | E9: ізо-бутан, і-С4 | F9: н-бутан, н-С4 | G9: нео-пентан, нео-С5 | H9: ізо-пентан, і-С5 | I9: н-пентан, н-С5 | J9: гексани та вищі, С6+ | K9: кисень, О2 | L9: азот, N2 | M9: діоксид вуглецю, CО2 | O9: Теплота згоряння нижча | R9: Теплота згоряння вища | U9: Число Воббе вище
O10: ккал/м3 | P10: МДж/м3 | Q10: кВт⋅год/м3 | R10: ккал/м3 | S10: МДж/м3 | T10: кВт⋅год/м3 | U10: ккал/м3 | V10: МДж/м3 | W10: кВт⋅год/м3
A11: 1 | B11: 96.3502 | C11: 1.9219 | D11: 0.5915 | E11: 0.0948 | F11: 0.0921 | G11: 0.0037 | H11: 0.018 | I11: 0.0122 | J11: 0.0055 | K11: 0.0099 | L11: 0.6997 | M11: 0.2004 | N11: 0.6965 | O11: 8150 | P11: 34.12 | Q11: =P11/3.6 -> 9.477777778 | R11: 9039 | S11: 37.84 | T11: =S11/3.6 -> 10.51111111 | U11: 11886 | V11: 49.77 | W11: =V11/3.6 -> 13.825 | X11: -21.6 | AC11: =SUM(B11:M11)+$K$42+$N$42 -> 99.9999
A12: 2 | B12: 96.3529 | C12: 1.9201 | D12: 0.5926 | E12: 0.0943 | F12: 0.0908 | G12: 0.0044 | H12: 0.0179 | I12: 0.012 | J12: 0.0037 | K12: 0.0096 | L12: 0.6998 | M12: 0.2018 | N12: 0.6965 | O12: 8149 | P12: 34.12 | Q12: =P12/3.6 -> 9.477777778 | R12: 9038 | S12: 37.84 | T12: =S12/3.6 -> 10.51111111 | U12: 11885 | V12: 49.76 | W12: =V12/3.6 -> 13.82222222 | X12: -22.8 | AC12: 99.9999
A13: 3 | B13: 96.3621 | C13: 1.921 | D13: 0.5921 | E13: 0.0936 | F13: 0.0911 | G13: 0.0044 | H13: 0.0177 | I13: 0.0119 | J13: 0.0057 | K13: 0.0089 | L13: 0.6895 | M13: 0.2019 | N13: 0.6965 | O13: 8151 | P13: 34.13 | Q13: 9.480555556 | R13: 9040 | S13: 37.85 | T13: =S14/3.6 -> 10.51388889 | U13: 11887 | V13: 49.77 | W13: =V13/3.6 -> 13.825 | X13: -22.9 | AC13: 99.9999 | AD13: =IF(AC13=100,"ОК"," ") -> 
A14: 4 | O14: 8151 | P14: 34.13 | Q14: 9.480555556 | R14: 9040 | S14: 37.85 | T14: 10.51388889 | AC14: 0 | AD14: =IF(AC14=100,"ОК"," ") -> 
A15: 5 | O15: 8151 | P15: 34.13 | Q15: 9.480555556 | R15: 9040 | S15: 37.85 | T15: 10.51388889 | AC15: 0
A16: 6 | B16: 96.3538 | C16: 1.9224 | D16: 0.5894 | E16: 0.0927 | F16: 0.0906 | G16: 0.0042 | H16: 0.0173 | I16: 0.0116 | J16: 0.0053 | K16: 0.0093 | L16: 0.7039 | M16: 0.1993 | N16: 0.6964 | O16: 8149 | P16: 34.12 | Q16: 9.477777778 | R16: 9038 | S16: 37.84 | T16: 10.51111111 | U16: 11885 | V16: 49.7609 | W16: =V16/3.6 -> 13.82247222 | X16: -23.1 | AC16: 99.9998
A17: 7 | B17: 96.2411 | C17: 1.9954 | D17: 0.6188 | E17: 0.0983 | F17: 0.0955 | G17: 0.005 | H17: 0.0182 | I17: 0.0122 | J17: 0.0054 | K17: 0.0093 | L17: 0.6912 | M17: 0.2097 | N17: 0.6975 | O17: 8160 | P17: 34.16 | Q17: 9.488888889 | R17: 9049 | S17: 37.89 | T17: 10.525 | U17: 11891 | V17: 49.79 | W17: =V17/3.6 -> 13.83055556 | X17: -23.1 | AC17: 100.0001
A18: 8 | B18: 96.2333 | C18: 1.9929 | D18: 0.6204 | E18: 0.0995 | F18: 0.0962 | G18: 0.0042 | H18: 0.0186 | I18: 0.0122 | J18: 0.0054 | K18: 0.0093 | L18: 0.6965 | M18: 0.2115 | N18: 0.6976 | O18: 8160 | P18: 34.16 | Q18: 9.488888889 | R18: 9049 | S18: 37.89 | T18: 10.525 | U18: 11890 | V18: 49.78 | W18: =V18/3.6 -> 13.82777778 | X18: -23 | AC18: 100 | AD18: ОК
A19: 9 | B19: 96.0758 | C19: 2.0991 | D19: 0.6487 | E19: 0.1028 | F19: 0.0995 | G19: 0.0036 | H19: 0.0189 | I19: 0.0129 | J19: 0.0053 | K19: 0.0092 | L19: 0.6989 | M19: 0.2252 | N19: 0.6988 | O19: 8170 | P19: 34.21 | Q19: 9.502777778 | R19: 9060 | S19: 37.93 | T19: 10.53611111 | U19: 11894 | V19: 49.8 | W19: =V19/3.6 -> 13.83333333 | X19: -23.2 | AC19: 99.9999
A20: 10 | B20: 96.1787 | C20: 2.0292 | D20: 0.6295 | E20: 0.0986 | F20: 0.096 | G20: 0.005 | H20: 0.0203 | I20: 0.013 | J20: 0.0053 | K20: 0.0099 | L20: 0.6976 | M20: 0.2169 | N20: 0.698 | O20: 8163 | P20: 34.18 | Q20: =P20/3.6 -> 9.494444444 | R20: 9053 | S20: 37.9 | T20: =S20/3.6 -> 10.52777778 | U20: 11891 | V20: 49.79 | W20: =V20/3.6 -> 13.83055556 | X20: -21.7 | AC20: 100 | AD20: ОК
A21: 11 | O21: 8163 | P21: 34.18 | Q21: 9.494444444 | R21: 9053 | S21: 37.9 | T21: 10.52777778 | AC21: 0
A22: 12 | O22: 8163 | P22: 34.18 | Q22: 9.494444444 | R22: 9053 | S22: 37.9 | T22: 10.52777778 | AC22: 0
A23: 13 | B23: 96.218 | C23: 2.0077 | D23: 0.6205 | E23: 0.0981 | F23: 0.0947 | G23: 0.005 | H23: 0.0201 | I23: 0.0129 | J23: 0.0053 | K23: 0.0097 | L23: 0.6985 | M23: 0.2095 | N23: 0.6977 | O23: 8161 | P23: 34.17 | Q23: 9.491666667 | R23: 9050 | S23: 37.89 | T23: 10.525 | U23: 11891 | V23: 49.79 | W23: =V23/3.6 -> 13.83055556 | X23: -24.8 | AC23: 100 | AD23: ОК
A24: 14 | B24: 96.2886 | C24: 1.9659 | D24: 0.6099 | E24: 0.0954 | F24: 0.0933 | G24: 0.0046 | H24: 0.0194 | I24: 0.0125 | J24: 0.0053 | K24: 0.0101 | L24: 0.6911 | M24: 0.2039 | N24: 0.6971 | O24: 8157 | P24: 34.15 | Q24: 9.486111111 | R24: 9046 | S24: 37.87 | T24: 10.51944444 | U24: 11890 | V24: 49.78 | W24: =V24/3.6 -> 13.82777778 | X24: -23.1 | AC24: 100 | AD24: ОК
A25: 15 | B25: 96.2887 | C25: 1.9717 | D25: 0.6089 | E25: 0.0955 | F25: 0.0922 | G25: 0.0047 | H25: 0.0197 | I25: 0.0123 | J25: 0.0053 | K25: 0.0099 | L25: 0.6885 | M25: 0.2026 | N25: 0.6971 | O25: 8157 | P25: 34.15 | Q25: 9.486111111 | R25: 9046 | S25: 37.88 | T25: 10.52222222 | U25: 11891 | V25: 49.79 | W25: =V25/3.6 -> 13.83055556 | X25: -22.2 | AC25: 100 | AD25: ОК
A26: 16 | B26: 96.2387 | C26: 1.9977 | D26: 0.62 | E26: 0.0974 | F26: 0.0939 | G26: 0.0043 | H26: 0.0196 | I26: 0.0124 | J26: 0.0054 | K26: 0.01 | L26: 0.6913 | M26: 0.2093 | N26: 0.6975 | O26: 8160 | P26: 34.16 | Q26: =P26/3.6 -> 9.488888889 | R26: 9049 | S26: 37.89 | T26: =S26/3.6 -> 10.525 | U26: 11891 | V26: 49.79 | W26: =V26/3.6 -> 13.83055556 | X26: -23.3 | AC26: 100 | AD26: ОК
A27: 17 | B27: 96.3 | C27: 1.9676 | D27: 0.6145 | E27: 0.0969 | F27: 0.0931 | G27: 0.0048 | H27: 0.0196 | I27: 0.0124 | J27: 0.0053 | K27: 0.0095 | L27: 0.6738 | M27: 0.2024 | N27: 0.6971 | O27: 8159 | P27: 34.16 | Q27: 9.488888889 | R27: 9049 | S27: 37.88 | T27: 10.52222222 | U27: 11894 | V27: 49.8 | W27: =V27/3.6 -> 13.83333333 | X27: -23 | AC27: 99.9999
A28: 18 | O28: 8159 | P28: 34.16 | Q28: 9.49 | R28: 9049 | S28: 37.88 | T28: 10.52222222 | AC28: 0
A29: 19 | O29: 8159 | P29: 34.16 | Q29: 9.49 | R29: 9049 | S29: 37.88 | T29: 10.52222222 | AC29: 0
A30: 20 | B30: 96.2828 | C30: 1.9854 | D30: 0.6067 | E30: 0.0955 | F30: 0.0919 | G30: 0.0048 | H30: 0.0188 | I30: 0.0123 | J30: 0.0053 | K30: 0.0089 | L30: 0.6826 | M30: 0.2049 | N30: 0.6971 | O30: 8158 | P30: 34.16 | Q30: 9.488888889 | R30: 9047 | S30: 37.88 | T30: 10.52222222 | U30: 11892 | V30: 49.79 | W30: =V30/3.6 -> 13.83055556 | X30: -23.2 | AC30: 99.9999 | AD30: =IF(AC30=100,"ОК"," ") -> 
A31: 21 | B31: 96.2867 | C31: 2.0013 | D31: 0.602 | E31: 0.0908 | F31: 0.0865 | G31: 0.0026 | H31: 0.0159 | I31: 0.0105 | J31: 0.0053 | K31: 0.0095 | L31: 0.6864 | M31: 0.2025 | N31: 0.6968 | O31: 8154 | P31: 34.14 | Q31: 9.483333333 | R31: 9044 | S31: 37.86 | T31: 10.51666667 | U31: 11890 | V31: 49.78 | W31: =V31/3.6 -> 13.82777778 | X31: -24.3 | AC31: 100 | AD31: ОК
A32: 22 | B32: 96.2875 | C32: 1.9947 | D32: 0.6009 | E32: 0.0904 | F32: 0.0866 | G32: 0.0048 | H32: 0.0159 | I32: 0.0105 | J32: 0.0051 | K32: 0.0093 | L32: 0.6952 | M32: 0.199 | N32: 0.6968 | O32: 8154 | P32: 34.14 | Q32: 9.483333333 | R32: 9043 | S32: 37.86 | T32: 10.51666667 | U32: 11889 | V32: 49.78 | W32: =V32/3.6 -> 13.82777778 | X32: -23.6 | Z32: 0 | AA32: 0 | AB32: 0 | AC32: 99.9999
A33: 23 | B33: 96.4137 | C33: 1.9112 | D33: 0.5737 | E33: 0.086 | F33: 0.0816 | G33: 0.0046 | H33: 0.0148 | I33: 0.0097 | J33: 0.0051 | K33: 0.0095 | L33: 0.6981 | M33: 0.1919 | N33: 0.6957 | O33: 8143 | P33: 34.09 | Q33: =P33/3.6 -> 9.469444444 | R33: 9032 | S33: 37.81 | T33: =S33/3.6 -> 10.50277778 | U33: 11884 | V33: 49.75 | W33: =V33/3.6 -> 13.81944444 | X33: -23.6 | AC33: 99.9999 | AD33: =IF(AC33=100,"ОК"," ") -> 
A34: 24 | B34: 96.3935 | C34: 1.9019 | D34: 0.5745 | E34: 0.0897 | F34: 0.0869 | G34: 0.0047 | H34: 0.0168 | I34: 0.0111 | J34: 0.0052 | K34: 0.0093 | L34: 0.7109 | M34: 0.1956 | N34: 0.696 | O34: 8144 | P34: 34.1 | Q34: 9.472222222 | R34: 9032 | S34: 37.82 | T34: 10.50555556 | U34: 11882 | V34: 49.75 | W34: =V34/3.6 -> 13.81944444 | X34: -22.3 | AC34: 100.0001
A35: 25 | O35: 8144 | P35: 34.1 | Q35: 9.472222222 | R35: 9032 | S35: 37.82 | T35: 10.50555556 | AC35: 0
A36: 26 | O36: 8144 | P36: 34.1 | Q36: 9.472222222 | R36: 9032 | S36: 37.82 | T36: =S36/3.6 -> 10.50555556 | AC36: 0
A37: 27 | B37: 96.1765 | C37: 2.0512 | D37: 0.6328 | E37: 0.0985 | F37: 0.0941 | G37: 0.0045 | H37: 0.0171 | I37: 0.0113 | J37: 0.0044 | K37: 0.0091 | L37: 0.6892 | M37: 0.2114 | N37: 0.6979 | O37: 8164 | P37: 34.18 | Q37: 9.494444444 | R37: 9054 | S37: 37.91 | T37: 10.53055556 | U37: 11894 | V37: 49.81 | W37: =V37/3.6 -> 13.83611111 | X37: -23.9 | AC37: 100.0001
A38: 28 | B38: 96.2592 | C38: 1.9989 | D38: 0.6142 | E38: 0.096 | F38: 0.0925 | G38: 0.0043 | H38: 0.0174 | I38: 0.0117 | J38: 0.0047 | K38: 0.0094 | L38: 0.6895 | M38: 0.2022 | N38: 0.6972 | O38: 8159 | P38: 34.16 | Q38: 9.488888889 | R38: 9048 | S38: 37.88 | T38: 10.52222222 | U38: 11892 | V38: 49.79 | W38: =V38/3.6 -> 13.83055556 | X38: -24.4 | AC38: 100 | AD38: ОК
A39: 29 | AC39: 0
A40: 30 | AC40: 0
A41: 31 | AC41: 0
A42: Вміст одоранта при одоризації становить 16 г на 1 000 м³ газу | O42: =SUMPRODUCT(O11:O41,' розрахунок'!AC7:AC37)/' розрахунок'!AC38 -> 8156.035779 | P42: =SUMPRODUCT(P11:P41,' розрахунок'!AC7:AC37)/' розрахунок'!AC38 -> 34.14835567 | Q42: =SUMPRODUCT(Q11:Q41,' розрахунок'!AC7:AC37)/' розрахунок'!AC38 -> 9.485725685 | R42: =SUMPRODUCT(R11:R41,' розрахунок'!AC7:AC37)/' розрахунок'!AC38 -> 9045.276018 | S42: =SUMPRODUCT(S11:S41,' розрахунок'!AC7:AC37)/' розрахунок'!AC38 -> 37.87019261 | T42: =SUMPRODUCT(T11:T41,' розрахунок'!AC7:AC37)/' розрахунок'!AC38 -> 10.51949795
H43: Середньозважене значення теплоти згоряння:
B45: Начальник управління Олександрівського ЛВУМГ Сурін М.А. 28.02.2017 р.
C46: Підрозділу підприємства, якому підпорядкована лабораторія | O46: прізвище | R46: підпис | V46: дата
B47: Начальник лабораторії Волкова С.Т. 28.02.2017р.
C48: Лабораторія, де здійснювалось вимірювання газу | O48: прізвище | R48: підпис | V48: дата
B49: Інженер 1 категорії групи метрології САВ і ТМ Мартьянов А.М. 28.02.2017р.
B50: Підрозділ, відповідального за облік газу за маршрутом | O50: прізвище | R50: підпис | V50: дата

Sheet розрахунок (hidden)
A2: Додаток до Паспорту фізико-хімічних показників природного газу по маршруту № 850
A4: Число місяця | B4: Теплота згоряння вища, МДж/м3 | C4: Миколаївська область | M4: Одеська область | O4: Кіровоградська область | AC4: Загальний обсяг газу, м3
C5: Обсяг газу переданого за добу, м3 | M5: Обсяг газу переданого за добу, м3 | O5: Обсяг газу переданого за добу, м3
C6: ГРС Миролюбівка | D6: ГРС Братське | E6: ГРС Арбузинка | F6: ГРС Вознесенськ | G6: ГРС Прибужжя | H6: ГРС Доманівка | I6: ГРС Острогорське | J6: ГРС Врадіївка | K6: ГРС Кримка | L6: ГРС Первомайськ | M6: ГРС Троїцьке | N6: ГРС Любашівка | O6: ГРС Іванівка | P6: ГРС Мошоріно | Q6: ГРС Червоний яр | R6: ГРС Новгородка | S6: ГРС Калинівка | T6: ГРС Кіровоград-2 | U6: ГРС Марівка | V6: ГРС Компаніївка | W6: ГРС Софіївка | X6: ГРС Бобринець | Y6: ГРС Витязівка | Z6: ГРС Новоградівка | AA6: АГНКС ТОВ Антарктида-17 | AB6: АГНКС ТОВ ТПЗ "ОіК"
A7: 1 | B7: 37.84 | C7: 5151 | D7: 30900 | E7: 7556 | F7: 143518 | G7: 8447 | H7: 26688 | I7: 4452 | J7: 47055 | K7: 7913 | L7: 267526 | M7: 8595 | N7: 68422 | O7: 1736 | P7: 44445 | Q7: 19757 | R7: 51296 | S7: 18890 | T7: 0 | U7: 13644 | V7: 34766 | W7: 3621 | X7: 68644 | Y7: 8359 | Z7: 10343 | AA7: 6447 | AB7: 7237 | AC7: =SUM(C7:AB7) -> 915408
A8: 2 | B8: 37.84 | C8: 4933 | D8: 29345 | E8: 4352 | F8: 133918 | G8: 8289 | H8: 26229 | I8: 4518 | J8: 46578 | K8: 7918 | L8: 256630 | M8: 8497 | N8: 69317 | O8: 1524 | P8: 40836 | Q8: 17944 | R8: 47013 | S8: 17302 | T8: 0 | U8: 12634 | V8: 32419 | W8: 3407 | X8: 63373 | Y8: 7847 | Z8: 9623 | AA8: 6921 | AB8: 6811 | AC8: =SUM(C8:AB8) -> 868178
A9: 3 | B9: 37.85 | C9: 4489 | D9: 27159 | E9: 6862 | F9: 132418 | G9: 7654 | H9: 24520 | I9: 4066 | J9: 43151 | K9: 7123 | L9: 247848 | M9: 7934 | N9: 65086 | O9: 1531 | P9: 38938 | Q9: 16889 | R9: 44174 | S9: 16120 | T9: 0 | U9: 12007 | V9: 29002 | W9: 3241 | X9: 59218 | Y9: 7078 | Z9: 8922 | AA9: 6020 | AB9: 5652 | AC9: =SUM(C9:AB9) -> 827102
A10: 4 | B10: 37.85 | C10: 3892 | D10: 24987 | E10: 6535 | F10: 130523 | G10: 6944 | H10: 22655 | I10: 3551 | J10: 39407 | K10: 6443 | L10: 225939 | M10: 7214 | N10: 58504 | O10: 1329 | P10: 35586 | Q10: 15032 | R10: 39213 | S10: 14443 | T10: 0 | U10: 10929 | V10: 26161 | W10: 2985 | X10: 53780 | Y10: 6118 | Z10: 8084 | AA10: 4317 | AB10: 3956 | AC10: 758527
A11: 5 | B11: 37.85 | C11: 3994 | D11: 24652 | E11: 6347 | F11: 125820 | G11: 6929 | H11: 22523 | I11: 3843 | J11: 39879 | K11: 6801 | L11: 325889 | M11: 7233 | N11: 58730 | O11: 1315 | P11: 35092 | Q11: 15140 | R11: 38783 | S11: 14498 | T11: 0 | U11: 10743 | V11: 26051 | W11: 2949 | X11: 53237 | Y11: 6368 | Z11: 8056 | AA11: 3874 | AB11: 4280 | AC11: 853026
A12: 6 | B12: 37.84 | C12: 4248 | D12: 25216 | E12: 6420 | F12: 129354 | G12: 7103 | H12: 22570 | I12: 3956 | J12: 40331 | K12: 7029 | L12: 228675 | M12: 7289 | N12: 58689 | O12: 1415 | P12: 36848 | Q12: 15916 | R12: 41131 | S12: 15048 | T12: 0 | U12: 11059 | V12: 27784 | W12: 3082 | X12: 55005 | Y12: 6779 | Z12: 8308 | AA12: 6239 | AB12: 6551 | AC12: 776045
A13: 7 | B13: 37.89 | C13: 4893 | D13: 28801 | E13: 7065 | F13: 141646 | G13: 8190 | H13: 25797 | I13: 4601 | J13: 46859 | K13: 7863 | L13: 257682 | M13: 8371 | N13: 67247 | O13: 1667 | P13: 42013 | Q13: 18781 | R13: 47287 | S13: 17471 | T13: 0 | U13: 13010 | V13: 32693 | W13: 3503 | X13: 63382 | Y13: 8193 | Z13: 9508 | AA13: 6479 | AB13: 6311 | AC13: 879313
A14: 8 | B14: 37.789 | C14: 5382 | D14: 30820 | E14: 7624 | F14: 147758 | G14: 8813 | H14: 27586 | I14: 4972 | J14: 50658 | K14: 8432 | L14: 272337 | M14: 9292 | N14: 71871 | O14: 1807 | P14: 44918 | Q14: 20252 | R14: 51080 | S14: 18668 | T14: 0 | U14: 14034 | V14: 35213 | W14: 3833 | X14: 68109 | Y14: 8655 | Z14: 10292 | AA14: 6504 | AB14: 3839 | AC14: 932749
A15: 9 | B15: 37.93 | C15: 5482 | D15: 31263 | E15: 7766 | F15: 144369 | G15: 8790 | H15: 27803 | I15: 5129 | J15: 51485 | K15: 8731 | L15: 285907 | M15: 9548 | N15: 74824 | O15: 1825 | P15: 45539 | Q15: 19987 | R15: 50895 | S15: 18548 | T15: 0 | U15: 14020 | V15: 35141 | W15: 3755 | X15: 68826 | Y15: 8709 | Z15: 10429 | AA15: 5430 | AB15: 6134 | AC15: 950335
A16: 10 | B16: 37.9 | C16: 5083 | D16: 30761 | E16: 7631 | F16: 145904 | G16: 8989 | H16: 27552 | I16: 5105 | J16: 51095 | K16: 8624 | L16: 283419 | M16: 9551 | N16: 74630 | O16: 1752 | P16: 44046 | Q16: 19389 | R16: 49308 | S16: 18013 | T16: 0 | U16: 13721 | V16: 33788 | W16: 3674 | X16: 67564 | Y16: 8184 | Z16: 10217 | AA16: 5743 | AB16: 5846 | AC16: 939589
A17: 11 | B17: 37.9 | C17: 4771 | D17: 29735 | E17: 7273 | F17: 143047 | G17: 8548 | H17: 26498 | I17: 4733 | J17: 48207 | K17: 7754 | L17: 271201 | M17: 8968 | N17: 70301 | O17: 1644 | P17: 42235 | Q17: 18189 | R17: 46904 | S17: 17016 | T17: 0 | U17: 12993 | V17: 31720 | W17: 3500 | X17: 64983 | Y17: 7465 | Z17: 9738 | AA17: 4062 | AB17: 7367 | AC17: 898852
A18: 12 | B18: 37.9 | C18: 4686 | D18: 28984 | E18: 7184 | F18: 137066 | G18: 8293 | H18: 26174 | I18: 4666 | J18: 47109 | K18: 7920 | L18: 270780 | M18: 8433 | N18: 68214 | O18: 1598 | P18: 40927 | Q18: 17700 | R18: 45303 | S18: 16880 | T18: 0 | U18: 12702 | V18: 31012 | W18: 3456 | X18: 62414 | Y18: 7477 | Z18: 9417 | AA18: 4121 | AB18: 4722 | AC18: 877238
A19: 13 | B19: 37.89 | C19: 4677 | D19: 27993 | E19: 7124 | F19: 136887 | G19: 8302 | H19: 25843 | I19: 4646 | J19: 47422 | K19: 7768 | L19: 265849 | M19: 8467 | N19: 68499 | O19: 1523 | P19: 40850 | Q19: 17598 | R19: 44694 | S19: 16779 | T19: 0 | U19: 12448 | V19: 30368 | W19: 3334 | X19: 60077 | Y19: 7391 | Z19: 9143 | AA19: 6095 | AB19: 6306 | AC19: 870083
A20: 14 | B20: 37.87 | C20: 4554 | D20: 27928 | E20: 7018 | F20: 138753 | G20: 8144 | H20: 25470 | I20: 4529 | J20: 46756 | K20: 76011 | L20: 256881 | M20: 8410 | N20: 68737 | O20: 1516 | P20: 40146 | Q20: 17335 | R20: 44372 | S20: 16502 | T20: 0 | U20: 12322 | V20: 29347 | W20: 3342 | X20: 60072 | Y20: 7394 | Z20: 9175 | AA20: 6504 | AB20: 6986 | AC20: 928204
A21: 15 | B21: 37.88 | C21: 4264 | D21: 25771 | E21: 6647 | F21: 134629 | G21: 7629 | H21: 23869 | I21: 4192 | J21: 43612 | K21: 7185 | L21: 244577 | M21: 7951 | N21: 63868 | O21: 1402 | P21: 38070 | Q21: 16023 | R21: 43148 | S21: 15373 | T21: 0 | U21: 11541 | V21: 27461 | W21: 3103 | X21: 56181 | Y21: 6894 | Z21: 8462 | AA21: 6108 | AB21: 6213 | AC21: 814173
A22: 16 | B22: 37.89 | C22: 4333 | D22: 25587 | E22: 6513 | F22: 131734 | G22: 7320 | H22: 22794 | I22: 4039 | J22: 42359 | K22: 6972 | L22: 239046 | M22: 7784 | N22: 62523 | O22: 1357 | P22: 36898 | Q22: 15391 | R22: 40249 | S22: 15111 | T22: 0 | U22: 11120 | V22: 27699 | W22: 2992 | X22: 54774 | Y22: 6751 | Z22: 8343 | AA22: 6427 | AB22: 6517 | AC22: 794633
A23: 17 | B23: 37.88 | C23: 3983 | D23: 25224 | E23: 6249 | F23: 129677 | G23: 7180 | H23: 21671 | I23: 3474 | J23: 39927 | K23: 6377 | L23: 220843 | M23: 7211 | N23: 58991 | O23: 1414 | P23: 36421 | Q23: 15477 | R23: 40342 | S23: 14825 | T23: 0 | U23: 11153 | V23: 25931 | W23: 2932 | X23: 53860 | Y23: 6552 | Z23: 8143 | AA23: 5883 | AB23: 5796 | AC23: 759536
A24: 18 | B24: 37.88 | C24: 3709 | D24: 24143 | E24: 6020 | F24: 123730 | G24: 6898 | H24: 20528 | I24: 3650 | J24: 37992 | K24: 5938 | L24: 215008 | M24: 6836 | N24: 55577 | O24: 1320 | P24: 34356 | Q24: 14290 | R24: 37370 | S24: 13732 | T24: 0 | U24: 10227 | V24: 24352 | W24: 2793 | X24: 50854 | Y24: 5825 | Z24: 7535 | AA24: 4334 | AB24: 4220 | AC24: 721237
A25: 19 | B25: 37.88 | C25: 3675 | D25: 22327 | E25: 5629 | F25: 119725 | G25: 6520 | H25: 20131 | I25: 3510 | J25: 35529 | K25: 5835 | L25: 198888 | M25: 6289 | N25: 51431 | O25: 1252 | P25: 32027 | Q25: 13756 | R25: 36090 | S25: 13246 | T25: 0 | U25: 9739 | V25: 23633 | W25: 2569 | X25: 48673 | Y25: 5789 | Z25: 7304 | AA25: 4151 | AB25: 4493 | AC25: 682211
A26: 20 | B26: 37.88 | C26: 3690 | D26: 22742 | E26: 5761 | F26: 125007 | G26: 6500 | H26: 19985 | I26: 3607 | J26: 36360 | K26: 6147 | L26: 229062 | M26: 6727 | N26: 54173 | O26: 1181 | P26: 31080 | Q26: 13300 | R26: 48595 | S26: 12982 | T26: 0 | U26: 9418 | V26: 23001 | W26: 2534 | X26: 48595 | Y26: 6084 | Z26: 7310 | AA26: 5788 | AB26: 6414 | AC26: 736043
A27: 21 | B27: 37.86 | C27: 3518 | D27: 21810 | E27: 5503 | F27: 123016 | G27: 6223 | H27: 19302 | I27: 3579 | J27: 35574 | K27: 5940 | L27: 205445 | M27: 6548 | N27: 52724 | O27: 1182 | P27: 30543 | Q27: 13148 | R27: 34215 | S27: 12695 | T27: 0 | U27: 9270 | V27: 22045 | W27: 2429 | X27: 46992 | Y27: 5750 | Z27: 7053 | AA27: 6310 | AB27: 6426 | AC27: 687240
A28: 22 | B28: 37.86 | C28: 3457 | D28: 21265 | E28: 5239 | F28: 121674 | G28: 6051 | H28: 18694 | I28: 3419 | J28: 34019 | K28: 5602 | L28: 188002 | M28: 6252 | N28: 50932 | O28: 1145 | P28: 29701 | Q28: 12804 | R28: 33120 | S28: 12431 | T28: 0 | U28: 8959 | V28: 21587 | W28: 2397 | X28: 44945 | Y28: 5631 | Z28: 6727 | AA28: 6408 | AB28: 6417 | AC28: 656878
A29: 23 | B29: 37.81 | C29: 3357 | D29: 20644 | E29: 5004 | F29: 121812 | G29: 5799 | H29: 17820 | I29: 3260 | J29: 32199 | K29: 5361 | L29: 190411 | M29: 5990 | N29: 47557 | O29: 1177 | P29: 30037 | Q29: 13000 | R29: 33507 | S29: 12145 | T29: 0 | U29: 9006 | V29: 21322 | W29: 2407 | X29: 44161 | Y29: 5554 | Z29: 6724 | AA29: 6121 | AB29: 6726 | AC29: 651101
A30: 24 | B30: 37.82 | C30: 2900 | D30: 18598 | E30: 4456 | F30: 116012 | G30: 4385 | H30: 15724 | I30: 2879 | J30: 28263 | K30: 4728 | L30: 166177 | M30: 5458 | N30: 44057 | O30: 1093 | P30: 27720 | Q30: 11669 | R30: 30352 | S30: 11293 | T30: 0 | U30: 8139 | V30: 18818 | W30: 2133 | X30: 38831 | Y30: 4819 | Z30: 6050 | AA30: 5695 | AB30: 6415 | AC30: 586664
A31: 25 | B31: 37.82 | C31: 3311 | D31: 20534 | E31: 4896 | F31: 117767 | G31: 5492 | H31: 17344 | I31: 2980 | J31: 30772 | K31: 4988 | L31: 184388 | M31: 6010 | N31: 48574 | O31: 1189 | P31: 28986 | Q31: 12636 | R31: 32385 | S31: 11867 | T31: 0 | U31: 8905 | V31: 21356 | W31: 2339 | X31: 43753 | Y31: 5313 | Z31: 6544 | AA31: 4591 | AB31: 4156 | AC31: 631076
A32: 26 | B32: 37.82 | C32: 3472 | D32: 20626 | E32: 4951 | F32: 113669 | G32: 5697 | H32: 17996 | I32: 3363 | J32: 32054 | K32: 5674 | L32: 187118 | M32: 6152 | N32: 49807 | O32: 1244 | P32: 30569 | Q32: 13416 | R32: 34003 | S32: 12541 | T32: 0 | U32: 9204 | V32: 21844 | W32: 2408 | X32: 44754 | Y32: 5508 | Z32: 6863 | AA32: 4597 | AB32: 3971 | AC32: 641501
A33: 27 | B33: 37.91 | C33: 3242 | D33: 18976 | E33: 4705 | F33: 111434 | G33: 5112 | H33: 16285 | I33: 3142 | J33: 29912 | K33: 5103 | L33: 166891 | M33: 5615 | N33: 44833 | O33: 1077 | P33: 28813 | Q33: 12263 | R33: 31140 | S33: 11764 | T33: 0 | U33: 8307 | V33: 19921 | W33: 2217 | X33: 41270 | Y33: 5187 | Z33: 6291 | AA33: 5731 | AB33: 5605 | AC33: 594836
A34: 28 | B34: 37.88 | C34: 3412 | D34: 19655 | E34: 4970 | F34: 118369 | G34: 5497 | H34: 17241 | I34: 3316 | J34: 32672 | K34: 5513 | L34: 179190 | M34: 5981 | N34: 48163 | O34: 1128 | P34: 29131 | Q34: 12546 | R34: 31536 | S34: 11824 | T34: 0 | U34: 8510 | V34: 20405 | W34: 2279 | X34: 42415 | Y34: 5282 | Z34: 6484 | AA34: 6537 | AB34: 6988 | AC34: 629044
A35: 29
A36: 30
A37: 31
A38: Загальний обсяг газу, м3 | C38: =SUM(C7:C37) -> 116558 | D38: =SUM(D7:D37) -> 706446 | E38: 173300 | F38: =SUM(F7:F37) -> 3639236 | G38: 199738 | H38: 627292 | I38: =SUM(I7:I37) -> 111177 | J38: 1137236 | K38: 257693 | L38: 6531609 | M38: =SUM(M7:M37) -> 208606 | N38: 1676281 | O38: 39343 | P38: 1016771 | Q38: 439628 | R38: 1147505 | S38: 418007 | T38: 0 | U38: 309764 | V38: 754840 | W38: 83214 | X38: 1528742 | Y38: 186956 | Z38: 231088 | AA38: 157437 | AB38: 162355 | AC38: 21860822
A39: Енергія, МДж | C39: =SUMPRODUCT(B7:B37,C7:C37) -> 4413582.928 | D39: =SUMPRODUCT(B7:B37,D7:D37) -> 26750221.98 | E39: =SUMPRODUCT(B7:B37,E7:E37) -> 6562269.526 | F39: =SUMPRODUCT(B7:B37,F7:F37) -> 137800408.7 | G39: =SUMPRODUCT(B7:B37,G7:G37) -> 7563354.377 | H39: =SUMPRODUCT(B7:B37,H7:H37) -> 23753101.87 | I39: =SUMPRODUCT(B7:B37,I7:I37) -> 4209878.348 | J39: =SUMPRODUCT(B7:B37,J7:J37) -> 43063045.67 | K39: =SUMPRODUCT(B7:B37,K7:K37) -> 9758130.128 | L39: =SUMPRODUCT(B7:B37,L7:L37) -> 247325871.1 | M39: =SUMPRODUCT(B7:B37,M7:M37) -> 7899117.548 | N39: =SUMPRODUCT(B7:B37,N7:N37) -> 63474353.32 | O39: =SUMPRODUCT(B7:B37,O7:O37) -> 1489749.413 | P39: =SUMPRODUCT(B7:B37,P7:P37) -> 38500961.98 | Q39: =SUMPRODUCT(B7:B37,Q7:Q37) -> 16646834.05 | R39: =SUMPRODUCT(B7:B37,R7:R37) -> 43451289.66 | S39: =SUMPRODUCT(B7:B37,S7:S37) -> 15828157.3 | T39: =SUMPRODUCT(B7:B37,T7:T37) -> 0 | U39: =SUMPRODUCT(B7:B37,U7:U37) -> 11729490.59 | V39: =SUMPRODUCT(B7:B37,V7:V37) -> 28582712.59 | W39: =SUMPRODUCT(B7:B37,W7:W37) -> 3150971.787 | X39: =SUMPRODUCT(B7:B37,X7:X37) -> 57887271.05 | Y39: =SUMPRODUCT(B7:B37,Y7:Y37) -> 7079247.545 | Z39: =SUMPRODUCT(B7:B37,Z7:Z37) -> 8750356.158 | AA39: =SUMPRODUCT(B7:B37,AA7:AA37) -> 5961182.196 | AB39: =SUMPRODUCT(B7:B37,AB7:AB37) -> 6147772.281 | AC39: =SUMPRODUCT(B7:B37,AC7:AC37) -> 827779332.1
A40: Теплота згоряння (середньозважене значення за місяць), МДж/м³ | C40: =C39/C38 -> 37.86598027 | D40: =D39/D38 -> 37.86591187 | E40: =E39/E38 -> 37.86652929 | F40: =F39/F38 -> 37.86520267 | G40: 37.86637684 | H40: 37.86610043 | I40: 37.86645033 | J40: 37.86641091 | K40: 37.86726891 | L40: 37.86599459 | M40: 37.86620494 | N40: 37.86617716 | O40: 37.8656791 | P40: 37.86591276 | Q40: 37.8657275 | R40: 37.86588264 | S40: 37.86577091 | U40: 37.86589334 | V40: 37.86592203 | W40: 37.86588539 | X40: 37.86595191 | Y40: 37.86584835 | Z40: 37.86590458 | AA40: 37.86392142 | AB40: 37.86623314 | AC40: 37.86588318
A41: Теплота згоряння (середньозважене значення за місяць), ккал/м³ | C41: =C40*238.8459 -> 9044.134136 | D41: =D40*238.8459 -> 9044.117801 | E41: 9044.265268 | F41: 9043.94841 | G41: 9044.228856 | H41: 9044.162838 | I41: 9044.246408 | J41: 9044.236992 | K41: 9044.441924 | L41: 9044.137558 | M41: 9044.187799 | N41: 9044.181164 | O41: 9044.062205 | P41: 9044.118012 | Q41: 9044.073763 | R41: 9044.110819 | S41: 9044.084133 | U41: 9044.113375 | V41: 9044.120227 | W41: =W40*238.8459 -> 9044.111476 | X41: 9044.127363 | Y41: 9044.10263 | Z41: 9044.116059 | AA41: 9043.642388 | AB41: 9044.194533 | AC41: 9044.110948
A42: Теплота згоряння (середньозважене значення за місяць), кВт*год./м³ | C42: =C40/3.6 -> 10.51832785 | D42: =D40/3.6 -> 10.51830885 | E42: 10.51848036 | F42: 10.51811185 | G42: 10.51843801 | H42: 10.51836123 | I42: 10.51845842 | J42: 10.51844747 | K42: 10.51868581 | L42: 10.51833183 | M42: 10.51839026 | N42: 10.51838254 | O42: 10.5182442 | P42: 10.5183091 | Q42: 10.51825764 | R42: =R40/3.6 -> 10.51830073 | S42: 10.5182697 | U42: 10.51830371 | V42: 10.51831168 | W42: 10.5183015 | X42: 10.51831997 | Y42: 10.51829121 | Z42: 10.51830683 | AA42: 10.51775595 | AB42: 10.51839809 | AC42: 10.51830088

Sheet variablesList (hidden)
A1: 3 | B1: x:\gaysin | C1: 10, 11, 24, 25, 127, 128, 132, 180, 207, 215 | D1: x:\
B2: x:\Illinci
B3: x:\Talne

Sheet додат вища тепл згор
A1: Додаток до Паспорту фізико-хімічних показників природного газу № 850
A2: Область | B2: ГРС, прямий споживач | C2: Середньозважене значення вищої теплоти згорання
C3: МДж/м³ | D3: ккал/м³ | E3: кВт*год/м³
A4: Миколаївськ область | B4: ГРС Миролюбівка | C4: 37.87 | D4: =C4*238.8459 -> 9045.094233 | E4: =C4/3.6 -> 10.51944444
B5: ГРС Братське | C5: 37.87 | D5: =C5*238.8459 -> 9045.094233 | E5: =C5/3.6 -> 10.51944444
B6: ГРС Арбузинка | C6: 37.87 | D6: =C6*238.8459 -> 9045.094233 | E6: =C6/3.6 -> 10.51944444
B7: ГРС Вознесенськ | C7: 37.87 | D7: 9045.094233 | E7: =C7/3.6 -> 10.51944444
B8: ГРС Прибужжя | C8: 37.87 | D8: 9045.094233 | E8: =C8/3.6 -> 10.51944444
B9: ГРС Доманівка | C9: 37.87 | D9: 9045.094233 | E9: 10.51944444
B10: ГРС Острогірське | C10: 37.87 | D10: 9045.094233 | E10: 10.51944444
B11: ГРС Врадіївка | C11: 37.87 | D11: 9045.094233 | E11: 10.51944444
B12: ГРС Кримка | C12: 37.87 | D12: 9045.094233 | E12: 10.51944444
B13: ГРС Первомайськ | C13: 37.87 | D13: 9045.094233 | E13: 10.51944444
A14: Одеська область | B14: ГРС Троїцьке | C14: 37.87 | D14: 9045.094233 | E14: 10.51944444
B15: ГРС Любашівка | C15: 37.87 | D15: 9045.094233 | E15: 10.51944444
A16: Кіровоградська область | B16: ГРС Іванівка | C16: 37.87 | D16: 9045.094233 | E16: 10.51944444
B17: ГРС Мошорине | C17: 37.87 | D17: 9045.094233 | E17: 10.51944444
B18: ГРС Червоний яр | C18: 37.87 | D18: 9045.094233 | E18: 10.51944444
B19: ГРС Новгородка | C19: 37.87 | D19: 9045.094233 | E19: 10.51944444
B20: ГРС Калинівка | C20: 37.87 | D20: 9045.094233 | E20: 10.51944444
B21: ГРС Кіроворгад-2 | C21: 37.87 | D21: 9045.094233 | E21: 10.51944444
B22: ГРС Марівка | C22: 37.87 | D22: 9045.094233 | E22: 10.51944444
B23: ГРС Компаніївка | C23: 37.87 | D23: 9045.094233 | E23: 10.51944444
B24: ГРС Софіївка | C24: 37.87 | D24: 9045.094233 | E24: 10.51944444
B25: ГРС Бобринець | C25: 37.87 | D25: =C25*238.8459 -> 9045.094233 | E25: 10.51944444
B26: ГРС Витязівка | C26: 37.87 | D26: 9045.094233 | E26: 10.51944444
B27: ГРС Новоградівка | C27: 37.87 | D27: 9045.094233 | E27: 10.51944444
B28: АГНКС ТОВ "Антарктида-17" | C28: 37.87 | D28: 9045.094233 | E28: 10.51944444
B29: АГНКС ТОВ ТПЗ "ОіК" | C29: 37.87 | D29: 9045.094233 | E29: 10.51944444
A30: Середньозважене значення вищої теплоти згорання по маршруту № 850 | C30: 37.87 | D30: 9045.094233 | E30: =C30/3.6 -> 10.51944444
A33: Начальник управління Олександрівського ЛВУМГ Сурін М.А. 28.02.2017 р.
A34: Підрозділу підприємства, якому підпорядкована лабораторія | C34: прізвище | D34: підпис | E34: дата
A35: Начальник лабораторії Волкова С.Т. 28.02.2017р.
A36: Лабораторія, де здійснювалось вимірювання газу | C36: прізвище | D36: підпис | E36: дата
A37: Інженер 1 категорії групи метрології САВ і ТМ Мартьянов А.М. 28.02.2017р.
A38: Підрозділ, відповідального за облік газу за маршрутом | C38: прізвище | D38: підпис | E38: дата
